Workbook

Sheet y' agrees
B1: Cubic Splines | C1: Cubic Splines
B2: When y' Agrees at Nodes
B4: This DIGMath module illustrates
B5: the notion of using cubic splines
B6: to create a smooth curve made up of a series
B7: of cubic curves that will pass through
B8: any set of points and where the slopes
B9: agree at the points where the cubics meet.
A12: How many points (3 - 19)? | E12: =2*F12+5 -> 15 | F12: 5
A14: Enter the coordinates in the cells below:
A15: with the x's in ASCENDING order:
B16: x | C16: y
A17: 1 | B17: 0 | C17: 4 | D17: 1
A18: 2 | B18: 2 | C18: 9 | D18: 2
A19: =IF(A18<n,A18+1,"") -> 3 | B19: 4 | C19: 16 | D19: 3
A20: 4 | B20: 7 | C20: 18 | D20: 4
A21: 5 | B21: 9 | C21: 12 | D21: 5
A22: 6 | B22: 12 | C22: 8 | D22: 6
A23: 7 | B23: 15 | C23: 16 | D23: 7
A24: 8 | B24: 17 | C24: 22 | D24: 8
A25: 9 | B25: 20 | C25: 6 | D25: 9
A26: 10 | B26: 23 | C26: 3 | D26: 10
A27: 11 | B27: 25 | C27: 11 | D27: 11
A28: 12 | B28: 28 | C28: 13 | D28: 12
A29: 13 | B29: 30 | C29: 8 | D29: 13
A30: 14 | B30: 32 | C30: 1 | D30: 14
A31: 15 | B31: 35 | C31: 5 | D31: 15
B32: 37 | C32: 15 | D32: 16
B33: 40 | C33: 25 | D33: 17
B34: 42 | C34: 28 | D34: 18
B35: 44 | C35: 11 | D35: 19
A39: Click each item below for suggestions and investigations
D40: Item 1
D41: Item 2
D42: Item 3
D43: Item 4
A46: To access/download all the DIGMath Apps for Calculus
A47: Click this link: | C47: DIGMath for Calculus
A49: Created by: Sheldon P. Gordon
A50: Farmingdale State College
A51: Development of this module was supported by the
A52: NSF's Division of Undergraduate Education
A53: under grants DUE-0310123 and DUE-0442160.

Sheet y' and y" agree
B1: Cubic Splines | C1: Cubic Splines
B2: When y' and y" Agree at Nodes
B4: This DIGMath module illustrates
B5: the notion of using cubic splines
B6: to create a smooth curve made up of a series
B7: of cubic curves that will pass through any
B8: set of points and where both the first and second
B9: derivatives agree where the cubics connect.
B12: How many points (4 - 10)? | E12: =F12 -> 6 | F12: 6
A14: Enter the coordinates in the cells below:
A15: with the x's in ASCENDING order:
B16: x | C16: y
A17: 1 | B17: 0 | C17: 4 | D17: 1
A18: 2 | B18: 1 | C18: 10 | D18: 2
A19: 3 | B19: 3 | C19: 18 | D19: 3
A20: =IF(A19<nn,A19+1,"") -> 4 | B20: 7 | C20: 16 | D20: 4
A21: 5 | B21: 9 | C21: 23 | D21: 5
A22: 6 | B22: 11 | C22: 22 | D22: 6
B23: 12 | C23: 35 | D23: 7
B24: 14 | C24: 47 | D24: 8
B25: 16 | C25: 66 | D25: 9
B26: 18 | C26: 88 | D26: 10
A31: Click each item below for suggestions and investigations
D32: Item 1
D33: Item 2
D34: Item 3
D35: Item 4
A39: To access/download all the DIGMath Apps for Calculus
A40: Click this link: | C40: DIGMath for Calculus
A42: Created by: Sheldon P. Gordon
A43: Farmingdale State College
A44: Development of this module was supported by the
A45: NSF's Division of Undergraduate Education
A46: under grants DUE-0310123 and DUE-0442160.

Sheet Sheet3
B1: x | C1: y | E1: First cubic | H1: Second cubic | K1: Third cubic | N1: Fourth cubic | Q1: Fifth cubic | T1: Sixth cubic | W1: Seventh cubic | Z1: Eighth cubic | AC1: Eighth cubic
A2: 1 | B2: ='y'' agrees'!B17 -> 0 | C2: ='y'' agrees'!C17 -> 4 | E2: m = | F2: =(C3-C2)/(B3-B2) -> 2.500 | H2: m = | I2: =F4+2*F10*$B4+3*F11*$B4^2 -> 4.500 | K2: m = | L2: =I4+2*I10*$I5+3*I11*$I5^2 -> -2.187 | N2: m = | O2: =L4+2*L10*L6+3*L11*L6^2 -> 5.813 | Q2: m = | R2: =O4+2*O10*O6+3*O11*O6^2 -> -11.113 | T2: m = | U2: =R4+2*R10*R6+3*R11*R6^2 -> 1.258 | W2: m = | X2: =U4+2*U10*U6+3*U11*U6^2 -> -4.639 | Z2: m = | AA2: =X4+2*X10*X6+3*X11*X6^2 -> 5.424 | AC2: m = | AD2: =AA4+2*AA10*AA6+3*AA11*AA6^2 -> 
A3: 2 | B3: ='y'' agrees'!B18 -> 2 | C3: ='y'' agrees'!C18 -> 9 | E3: a= | F3: =C2 -> 4.000 | H3: a= | I3: =$C4 -> 16.000 | K3: a= | L3: =$C6 -> 12.000 | N3: a= | O3: =$C8 -> 16.000 | Q3: a= | R3: =$C10 -> 6.000 | T3: a= | U3: =$C12 -> 11.000 | W3: a= | X3: =$C14 -> 8.000 | Z3: a= | AA3: =$C16 -> 5.000 | AC3: a= | AD3: =$C18 -> 5.000
A4: 3 | B4: =IF(A4<=n,'y'' agrees'!B19,"") -> 4 | C4: ='y'' agrees'!C19 -> 16 | E4: b= | F4: =F2 -> 2.500 | H4: b= | I4: =I2 -> 4.500 | K4: b= | L4: =L2 -> -2.187 | N4: b= | O4: =O2 -> 5.813 | Q4: b= | R4: =R2 -> -11.113 | T4: b= | U4: =U2 -> 1.258 | W4: b= | X4: =X2 -> -4.639 | Z4: b= | AA4: =AA2 -> 5.424 | AC4: b= | AD4: =AD2 -> 
A5: 4 | B5: =IF(A5<=n,'y'' agrees'!B20,"") -> 7 | C5: ='y'' agrees'!C20 -> 18 | E5: d0 = | F5: =$B3-$B2 -> 2.000 | H5: d0 = | I5: =$B5-$B4 -> 3.000 | K5: d0 = | L5: =$B7-$B6 -> 3.000 | N5: d0 = | O5: =$B9-$B8 -> 2.000 | Q5: d0 = | R5: =$B11-$B10 -> 3.000 | T5: d0 = | U5: =$B13-$B12 -> 3.000 | W5: d0 = | X5: =$B15-$B14 -> 2.000 | Z5: d0 = | AA5: =$B17-$B16 -> 0.000 | AC5: d0 = | AD5: =$B19-$B18 -> 0.000
A6: 5 | B6: =IF(A6<=n,'y'' agrees'!B21,"") -> 9 | C6: ='y'' agrees'!C21 -> 12 | E6: d1 = | F6: =$B4-$B2 -> 4.000 | H6: d1 = | I6: =$B6-$B4 -> 5.000 | K6: d1 = | L6: =$B8-$B6 -> 6.000 | N6: d1 = | O6: =$B10-$B8 -> 5.000 | Q6: d1 = | R6: =$B12-$B10 -> 5.000 | T6: d1 = | U6: =$B14-$B12 -> 5.000 | W6: d1 = | X6: =$B16-$B14 -> 5.000 | Z6: d1 = | AA6: =$B18-$B16 -> 0.000 | AC6: d1 = | AD6: =$B20-$B18 -> 0.000
A7: 6 | B7: =IF($A7<=n,'y'' agrees'!B22,LOOKUP(n,A$2:A$20,B$2:B$20)) -> 12 | C7: =IF($A7<=n,'y'' agrees'!C22,LOOKUP(n,A$2:A$20,C$2:C$20)) -> 8 | E7: dd = | F7: =F5^2*F6^2*(F6-F5) -> 128.000 | G7: =IF(F7=0,"No Solution","") ->  | H7: dd = | I7: =I5^2*I6^2*(I6-I5) -> 450.000 | J7: =IF(I7=0,"No Solution","") ->  | K7: dd = | L7: =L5^2*L6^2*(L6-L5) -> 972.000 | M7: =IF(L7=0,"No Solution","") ->  | N7: dd = | O7: =O5^2*O6^2*(O6-O5) -> 300.000 | P7: =IF(O7=0,"No Solution","") ->  | Q7: dd = | R7: =R5^2*R6^2*(R6-R5) -> 450.000 | S7: =IF(R7=0,"No Solution","") ->  | T7: dd = | U7: =U5^2*U6^2*(U6-U5) -> 450.000 | V7: =IF(U7=0,"No Solution","") ->  | W7: dd = | X7: =X5^2*X6^2*(X6-X5) -> 300.000 | Y7: =IF(X7=0,"No Solution","") ->  | Z7: dd = | AA7: =AA5^2*AA6^2*(AA6-AA5) -> 0.000 | AB7: =IF(AA7=0,"No Solution","") -> No Solution | AC7: dd = | AD7: =AD5^2*AD6^2*(AD6-AD5) -> 0.000 | AE7: =IF(AD7=0,"No Solution","") -> No Solution
A8: 7 | B8: =IF($A8<=n,'y'' agrees'!B23,LOOKUP(n,A$2:A$20,B$2:B$20)) -> 15 | C8: =IF($A8<=n,'y'' agrees'!C23,LOOKUP(n,A$2:A$20,C$2:C$20)) -> 16 | E8: e0 = | F8: =C3-C2-F2*F5 -> 0.000 | H8: e0 = | I8: =$C5-$C4-I2*I5 -> -11.500 | K8: e0 = | L8: =$C7-$C6-L2*L5 -> 2.560 | N8: e0 = | O8: =$C9-$C8-O2*O5 -> -5.627 | Q8: e0 = | R8: =$C11-$C10-R2*R5 -> 30.340 | T8: e0 = | U8: =$C13-$C12-U2*U5 -> -1.773 | W8: e0 = | X8: =$C15-$C14-X2*X5 -> 2.279 | Z8: e0 = | AA8: =$C17-$C16-AA2*AA5 -> 0.000 | AC8: e0 = | AD8: =$C19-$C18-AD2*AD5 -> 
A9: 8 | B9: =IF($A9<=n,'y'' agrees'!B24,LOOKUP(n,A$2:A$20,B$2:B$20)) -> 17 | C9: =IF($A9<=n,'y'' agrees'!C24,LOOKUP(n,A$2:A$20,C$2:C$20)) -> 22 | E9: e1 = | F9: =C4-C2-F2*F6 -> 2.000 | H9: e1 = | I9: =$C6-$C4-I2*I6 -> -26.500 | K9: e1 = | L9: =$C8-$C6-L2*L6 -> 17.120 | N9: e1 = | O9: =$C10-$C8-O2*O6 -> -39.067 | Q9: e1 = | R9: =$C12-$C10-R2*R6 -> 60.567 | T9: e1 = | U9: =$C14-$C12-U2*U6 -> -9.289 | W9: e1 = | X9: =$C16-$C14-X2*X6 -> 20.196 | Z9: e1 = | AA9: =$C18-$C16-AA2*AA6 -> 0.000 | AC9: e1 = | AD9: =$C20-$C18-AD2*AD6 -> 
A10: 9 | B10: =IF($A10<=n,'y'' agrees'!B25,LOOKUP(n,A$2:A$20,B$2:B$20)) -> 20 | C10: =IF($A10<=n,'y'' agrees'!C25,LOOKUP(n,A$2:A$20,C$2:C$20)) -> 6 | E10: c= | F10: =(F8*F6^3-F9*F5^3)/F7 -> -0.125 | H10: c= | I10: =(I8*I6^3-I9*I5^3)/I7 -> -1.604444444 | K10: c= | L10: =(L8*L6^3-L9*L5^3)/L7 -> 0.09333333333 | N10: c= | O10: =(O8*O6^3-O9*O5^3)/O7 -> -1.302666667 | Q10: c= | R10: =(R8*R6^3-R9*R5^3)/R7 -> 4.793777778 | T10: c= | U10: =(U8*U6^3-U9*U5^3)/U7 -> 0.06474074074 | W10: c= | X10: =(X8*X6^3-X9*X5^3)/X7 -> 0.4108148148 | Z10: c= | AA10: =(AA8*AA6^3-AA9*AA5^3)/AA7 ->  | AC10: c= | AD10: =(AD8*AD6^3-AD9*AD5^3)/AD7 -> 
A11: 10 | B11: =IF($A11<=n,'y'' agrees'!B26,LOOKUP(n,A$2:A$20,B$2:B$20)) -> 23 | C11: =IF($A11<=n,'y'' agrees'!C26,LOOKUP(n,A$2:A$20,C$2:C$20)) -> 3 | E11: d= | F11: =(F9*F5^2-F8*F6^2)/F7 -> 0.063 | H11: d= | I11: =(I9*I5^2-I8*I6^2)/I7 -> 0.109 | K11: d= | L11: =(L9*L5^2-L8*L6^2)/L7 -> 0.064 | N11: d= | O11: =(O9*O5^2-O8*O6^2)/O7 -> -0.052 | Q11: d= | R11: =(R9*R5^2-R8*R6^2)/R7 -> -0.474 | T11: d= | U11: =(U9*U5^2-U8*U6^2)/U7 -> -0.087 | W11: d= | X11: =(X9*X5^2-X8*X6^2)/X7 -> 0.079 | Z11: d= | AA11: =(AA9*AA5^2-AA8*AA6^2)/AA7 ->  | AC11: d= | AD11: =(AD9*AD5^2-AD8*AD6^2)/AD7 -> 
A12: 11 | B12: =IF($A12<=n,'y'' agrees'!B27,LOOKUP(n,A$2:A$20,B$2:B$20)) -> 25 | C12: =IF($A12<=n,'y'' agrees'!C27,LOOKUP(n,A$2:A$20,C$2:C$20)) -> 11
A13: 12 | B13: =IF($A13<=n,'y'' agrees'!B28,LOOKUP(n,A$2:A$20,B$2:B$20)) -> 28 | C13: =IF($A13<=n,'y'' agrees'!C28,LOOKUP(n,A$2:A$20,C$2:C$20)) -> 13 | E13: coordinates: | H13: coordinates: | K13: coordinates: | N13: coordinates: | Q13: coordinates: | T13: coordinates: | W13: coordinates: | Z13: coordinates: | AC13: coordinates:
A14: 13 | B14: =IF($A14<=n,'y'' agrees'!B29,LOOKUP(n,A$2:A$20,B$2:B$20)) -> 30 | C14: =IF($A14<=n,'y'' agrees'!C29,LOOKUP(n,A$2:A$20,C$2:C$20)) -> 8 | E14: =$B2 -> 0 | F14: =F$11*E14^3+F$10*E14^2+F$4*E14+F$3 -> 4.000 | H14: =$B4 -> 4 | I14: =C4 -> 16.000 | K14: =$B6 -> 9 | L14: =$C6 -> 12.000 | N14: =$B8 -> 15 | O14: =$C8 -> 16.000 | Q14: =$B10 -> 20 | R14: =$C10 -> 6.000 | T14: =$B12 -> 25 | U14: =$C12 -> 11.000 | W14: =$B14 -> 30 | X14: =$C14 -> 8.000 | Z14: =$B16 -> 35 | AA14: =$C16 -> 5.000 | AC14: =$B18 -> 35 | AD14: =$C18 -> 5.000
A15: 14 | B15: =IF($A15<=n,'y'' agrees'!B30,LOOKUP(n,A$2:A$20,B$2:B$20)) -> 32 | C15: =IF($A15<=n,'y'' agrees'!C30,LOOKUP(n,A$2:A$20,C$2:C$20)) -> 1 | E15: =E14+($B4-$B2)/3 -> 1.333333333 | F15: =F$11*E15^3+F$10*E15^2+F$4*E15+F$3 -> 7.259 | H15: =H14+($B6-$B4)/3 -> 5.667 | I15: =I$11*(H15-H$14)^3+I$10*(H15-H$14)^2+I$4*(H15-H$14)+I$3 -> 19.547 | K15: =K14+($B8-$B6)/3 -> 11.000 | L15: =L$11*(K15-K$14)^3+L$10*(K15-K$14)^2+L$4*(K15-K$14)+L$3 -> 8.510 | N15: =N14+($B10-$B8)/3 -> 16.667 | O15: =O$11*(N15-N$14)^3+O$10*(N15-N$14)^2+O$4*(N15-N$14)+O$3 -> 21.830 | Q15: =Q14+($B12-$B10)/3 -> 21.667 | R15: =R$11*(Q15-Q$14)^3+R$10*(Q15-Q$14)^2+R$4*(Q15-Q$14)+R$3 -> -1.402 | T15: =T14+($B14-$B12)/3 -> 26.667 | U15: =U$11*(T15-T$14)^3+U$10*(T15-T$14)^2+U$4*(T15-T$14)+U$3 -> 12.872 | W15: =W14+(X6)/3 -> 31.667 | X15: =X$11*(W15-W$14)^3+X$10*(W15-W$14)^2+X$4*(W15-W$14)+X$3 -> 1.777 | Z15: =Z14+(AA6)/3 -> 35.000 | AA15: =AA$11*(Z15-Z$14)^3+AA$10*(Z15-Z$14)^2+AA$4*(Z15-Z$14)+AA$3 ->  | AC15: =AC14+(AD6)/3 -> 35.000 | AD15: =AD$11*(AC15-AC$14)^3+AD$10*(AC15-AC$14)^2+AD$4*(AC15-AC$14)+AD$3 -> 
A16: 15 | B16: =IF($A16<=n,'y'' agrees'!B31,LOOKUP(n,A$2:A$20,B$2:B$20)) -> 35 | C16: =IF($A16<=n,'y'' agrees'!C31,LOOKUP(n,A$2:A$20,C$2:C$20)) -> 5 | E16: =E14+2*($B4-$B2)/3 -> 2.666666667 | F16: =F$11*E16^3+F$10*E16^2+F$4*E16+F$3 -> 10.963 | H16: =H14+2*($B6-$B4)/3 -> 7.333 | I16: =I$11*(H16-H$14)^3+I$10*(H16-H$14)^2+I$4*(H16-H$14)+I$3 -> 17.206 | K16: =K14+2*($B8-$B6)/3 -> 13.000 | L16: =L$11*(K16-K$14)^3+L$10*(K16-K$14)^2+L$4*(K16-K$14)+L$3 -> 8.824 | N16: =N14+2*($B10-$B8)/3 -> 18.333 | O16: =O$11*(N16-N$14)^3+O$10*(N16-N$14)^2+O$4*(N16-N$14)+O$3 -> 18.978 | Q16: =Q14+2*($B12-$B10)/3 -> 23.333 | R16: =R$11*(Q16-Q$14)^3+R$10*(Q16-Q$14)^2+R$4*(Q16-Q$14)+R$3 -> 4.656 | T16: =T14+2*($B14-$B12)/3 -> 28.333 | U16: =U$11*(T16-T$14)^3+U$10*(T16-T$14)^2+U$4*(T16-T$14)+U$3 -> 12.680 | W16: =W14+2*(X6)/3 -> 33.333 | X16: =X$11*(W16-W$14)^3+X$10*(W16-W$14)^2+X$4*(W16-W$14)+X$3 -> 0.041 | Z16: =Z14+2*(AA6)/3 -> 35.000 | AA16: =AA$11*(Z16-Z$14)^3+AA$10*(Z16-Z$14)^2+AA$4*(Z16-Z$14)+AA$3 ->  | AC16: =AC14+2*(AD6)/3 -> 35.000 | AD16: =AD$11*(AC16-AC$14)^3+AD$10*(AC16-AC$14)^2+AD$4*(AC16-AC$14)+AD$3 -> 
A17: 16 | B17: =IF($A17<=n,'y'' agrees'!B32,LOOKUP(n,A$2:A$20,B$2:B$20)) -> 35 | C17: =IF($A17<=n,'y'' agrees'!C32,LOOKUP(n,A$2:A$20,C$2:C$20)) -> 5 | E17: =$B4 -> 4 | F17: =F$11*E17^3+F$10*E17^2+F$4*E17+F$3 -> 16.000 | H17: =$B6 -> 9 | I17: =I$11*(H17-H$14)^3+I$10*(H17-H$14)^2+I$4*(H17-H$14)+I$3 -> 12.000 | K17: =$B8 -> 15 | L17: =L$11*(K17-K$14)^3+L$10*(K17-K$14)^2+L$4*(K17-K$14)+L$3 -> 16.000 | N17: =$B10 -> 20 | O17: =O$11*(N17-N$14)^3+O$10*(N17-N$14)^2+O$4*(N17-N$14)+O$3 -> 6.000 | Q17: =$B12 -> 25 | R17: =R$11*(Q17-Q$14)^3+R$10*(Q17-Q$14)^2+R$4*(Q17-Q$14)+R$3 -> 11.000 | T17: =$B14 -> 30 | U17: =U$11*(T17-T$14)^3+U$10*(T17-T$14)^2+U$4*(T17-T$14)+U$3 -> 8.000 | W17: =$B16 -> 35 | X17: =X$11*(W17-W$14)^3+X$10*(W17-W$14)^2+X$4*(W17-W$14)+X$3 -> 5.000 | Z17: =$B18 -> 35 | AA17: =AA$11*(Z17-Z$14)^3+AA$10*(Z17-Z$14)^2+AA$4*(Z17-Z$14)+AA$3 ->  | AC17: =$B20 -> 35 | AD17: =AD$11*(AC17-AC$14)^3+AD$10*(AC17-AC$14)^2+AD$4*(AC17-AC$14)+AD$3 -> 
A18: 17 | B18: =IF($A18<=n,'y'' agrees'!B33,LOOKUP(n,A$2:A$20,B$2:B$20)) -> 35 | C18: =IF($A18<=n,'y'' agrees'!C33,LOOKUP(n,A$2:A$20,C$2:C$20)) -> 5
A19: 18 | B19: =IF($A19<=n,'y'' agrees'!B34,LOOKUP(n,A$2:A$20,B$2:B$20)) -> 35 | C19: =IF($A19<=n,'y'' agrees'!C34,LOOKUP(n,A$2:A$20,C$2:C$20)) -> 5
A20: 19 | B20: =IF($A20<=n,'y'' agrees'!B35,LOOKUP(n,A$2:A$20,B$2:B$20)) -> 35 | C20: =IF($A20<=n,'y'' agrees'!C35,LOOKUP(n,A$2:A$20,C$2:C$20)) -> 5
B25: x | C25: y | E25: First cubic | H25: Second cubic | K25: Third cubic | N25: Fourth cubic | Q25: Fifth cubic | T25: Sixth cubic | W25: Seventh cubic | Z25: Eighth cubic | AC25: Ninth cubic | AF25: Tenth cubic
A26: 1 | B26: ='y'' and y" agree'!B17 -> 0 | C26: ='y'' and y" agree'!C17 -> 4 | E26: dx = | F26: =B27-B26 -> 1 | H26: dx= | I26: =$B29-$B28 -> 4 | K26: dx= | L26: =$B30-$B29 -> 2 | N26: dx= | O26: =$B31-$B30 -> 2 | Q26: dx= | R26: =$B32-$B31 -> 0 | T26: dx= | U26: =$B33-$B32 -> 0 | W26: dx= | X26: =$B34-$B33 -> 0 | Z26: dx= | AA26: =$B35-$B34 -> 0 | AC26: dx= | AD26: =$B36-$B35 -> 0 | AF26: dx= | AG26: =$B37-$B36 -> 0
A27: 2 | B27: ='y'' and y" agree'!B18 -> 1 | C27: ='y'' and y" agree'!C18 -> 10 | E27: ex = | F27: =B28-B26 -> 3 | H27: m = | I27: =F42 -> 5.833 | K27: m = | L27: =I42 -> -5.500 | N27: m = | O27: =L42 -> 23.333 | Q27: m = | R27: =O42 -> -78.833 | T27: m = | U27: =R42 ->  | W27: m = | X27: =U42 ->  | Z27: m = | AA27: =X42 ->  | AC27: m = | AD27: =AA42 ->  | AF27: m = | AG27: =AD42 -> 
A28: 3 | B28: =IF(A28<=nn,'y'' and y" agree'!B19,"") -> 3 | C28: ='y'' and y" agree'!C19 -> 18 | E28: s = | F28: =(C28-2*C27+C26)/F26/F27 -> 0.6666666667 | H28: s = | I28: =F43 -> -3.833333333 | K28: s = | L28: =I43 -> -1.833333333 | N28: s = | O28: =L43 -> 30.66666667 | Q28: s = | R28: =O43 -> -132.8333333 | T28: s = | U28: =R43 ->  | W28: s = | X28: =U43 ->  | Z28: s = | AA28: =X43 ->  | AC28: s = | AD28: =AA43 ->  | AF28: s = | AG28: =AD43 -> 
A29: 4 | B29: =IF(A29<=nn,'y'' and y" agree'!B20,"") -> 7 | C29: =IF($A29<=nn,'y'' and y" agree'!C20,LOOKUP(nn,A$26:A$45,C$26:C$45)) -> 16 | E29: den = | F29: =-F26^3*F27+F26*F27^3 -> 24.000
A30: 5 | B30: =IF($A30<=nn,'y'' and y" agree'!B21,LOOKUP(nn,Sheet3!A$26:A$45,Sheet3!B$26:B$45)) -> 9 | C30: =IF($A30<=nn,'y'' and y" agree'!C21,LOOKUP(nn,A$26:A$45,C$26:C$45)) -> 23
A31: 6 | B31: =IF($A31<=nn,'y'' and y" agree'!B22,LOOKUP(nn,Sheet3!A$26:A$45,Sheet3!B$26:B$45)) -> 11 | C31: =IF($A31<=nn,'y'' and y" agree'!C22,LOOKUP(nn,A$26:A$45,C$26:C$45)) -> 22 | E31: a= | F31: =C26 -> 4.000 | H31: a= | I31: =$C28 -> 18.000 | K31: a= | L31: =$C29 -> 16.000 | N31: a= | O31: =$C30 -> 23.000 | Q31: a= | R31: =$C31 -> 22.000 | T31: a= | U31: =$C32 -> 22.000 | W31: a= | X31: =$C33 -> 22.000 | Z31: a= | AA31: =$C34 -> 22.000 | AC31: a= | AD31: =$C35 -> 22.000 | AF31: a= | AG31: =$C36 -> 22.000
A32: 7 | B32: =IF($A32<=nn,'y'' and y" agree'!B23,LOOKUP(nn,Sheet3!A$26:A$45,Sheet3!B$26:B$45)) -> 11 | C32: =IF($A32<=nn,'y'' and y" agree'!C23,LOOKUP(nn,A$26:A$45,C$26:C$45)) -> 22 | E32: b= | F32: =(F27^3* (C27-C26-F28/2*F26^2) - F26^3* (C28-C26-F28/2*F27^2) ) /F29 -> 5.917 | H32: b= | I32: =I27 -> 5.833 | K32: b= | L32: =L27 -> -5.500 | N32: b= | O32: =O27 -> 23.333 | Q32: b= | R32: =R27 -> -78.833 | T32: b= | U32: =U27 ->  | W32: b= | X32: =X27 ->  | Z32: b= | AA32: =AA27 ->  | AC32: b= | AD32: =AD27 ->  | AF32: b= | AG32: =AG27 -> 
A33: 8 | B33: =IF($A33<=nn,'y'' and y" agree'!B24,LOOKUP(nn,Sheet3!A$26:A$45,Sheet3!B$26:B$45)) -> 11 | C33: =IF($A33<=nn,'y'' and y" agree'!C24,LOOKUP(nn,A$26:A$45,C$26:C$45)) -> 22 | E33: c= | F33: =F28/2 -> 0.3333333333 | H33: c= | I33: =I28/2 -> -1.916666667 | K33: c= | L33: =L28/2 -> -0.9166666667 | N33: c= | O33: =O28/2 -> 15.33333333 | Q33: c= | R33: =R28/2 -> -66.41666667 | T33: c= | U33: =U28/2 ->  | W33: c= | X33: =X28/2 ->  | Z33: c= | AA33: =AA28/2 ->  | AC33: c= | AD33: =AD28/2 ->  | AF33: c= | AG33: =AG28/2 -> 
A34: 9 | B34: =IF($A34<=nn,'y'' and y" agree'!B25,LOOKUP(nn,Sheet3!A$26:A$45,Sheet3!B$26:B$45)) -> 11 | C34: =IF($A34<=nn,'y'' and y" agree'!C25,LOOKUP(nn,A$26:A$45,C$26:C$45)) -> 22 | E34: d= | F34: =(F26*(C28-C26-F28/2*F27^2)-F27*(C27-C26-F28/2*F26^2))/F29 -> -0.250 | H34: d= | I34: =($C29-$C28-I27*I26-I28/2*I26^2)/I26^3 -> 0.083 | K34: d= | L34: =($C30-$C29-L27*L26-L28/2*L26^2)/L26^3 -> 2.708 | N34: d= | O34: =($C31-$C30-O27*O26-O28/2*O26^2)/O26^3 -> -13.625 | Q34: d= | R34: =($C32-$C31-R27*R26-R28/2*R26^2)/R26^3 ->  | T34: d= | U34: =($C33-$C32-U27*U26-U28/2*U26^2)/U26^3 ->  | W34: d= | X34: =($C34-$C33-X27*X26-X28/2*X26^2)/X26^3 ->  | Z34: d= | AA34: =($C35-$C34-AA27*AA26-AA28/2*AA26^2)/AA26^3 ->  | AC34: d= | AD34: =($C36-$C35-AD27*AD26-AD28/2*AD26^2)/AD26^3 ->  | AF34: d= | AG34: =($C37-$C36-AG27*AG26-AG28/2*AG26^2)/AG26^3 -> 
A35: 10 | B35: =IF($A35<=nn,'y'' and y" agree'!B26,LOOKUP(nn,Sheet3!A$26:A$45,Sheet3!B$26:B$45)) -> 11 | C35: =IF($A35<=nn,'y'' and y" agree'!C26,LOOKUP(nn,A$26:A$45,C$26:C$45)) -> 22
A36: 11 | B36: =IF($A36<=nn,'y'' and y" agree'!B27,LOOKUP(nn,Sheet3!A$26:A$45,Sheet3!B$26:B$45)) -> 11 | C36: =IF($A36<=nn,'y'' and y" agree'!C27,LOOKUP(nn,A$26:A$45,C$26:C$45)) -> 22 | E36: coordinates: | H36: coordinates: | K36: coordinates: | N36: coordinates: | Q36: coordinates: | T36: coordinates: | W36: coordinates: | Z36: coordinates: | AC36: coordinates: | AF36: coordinates:
A37: 12 | B37: =IF($A37<=nn,'y'' and y" agree'!B28,LOOKUP(nn,Sheet3!A$26:A$45,Sheet3!B$26:B$45)) -> 11 | C37: =IF($A37<=nn,'y'' and y" agree'!C28,LOOKUP(nn,A$26:A$45,C$26:C$45)) -> 22 | E37: =$B26 -> 0 | F37: =F$34*(E37-$B$26)^3+F$33*(E37-$B$26)^2+F$32*(E37-$B$26)+F$31 -> 4.000 | H37: =$B28 -> 3 | I37: =I$34*(H37-$B$28)^3+I$33*(H37-$B$28)^2+I$32*(H37-$B$28)+I$31 -> 18.000 | K37: =$B29 -> 7 | L37: =L$34*(K37-$B$29)^3+L$33*(K37-$B$29)^2+L$32*(K37-$B$29)+L$31 -> 16.000 | N37: =$B30 -> 9 | O37: =O$34*(N37-$B$30)^3+O$33*(N37-$B$30)^2+O$32*(N37-$B$30)+O$31 -> 23.000 | Q37: =$B31 -> 11 | R37: =R$34*(Q37-$B$31)^3+R$33*(Q37-$B$31)^2+R$32*(Q37-$B$31)+R$31 ->  | T37: =$B32 -> 11 | U37: =U$34*(T37-$B$32)^3+U$33*(T37-$B$32)^2+U$32*(T37-$B$32)+U$31 ->  | W37: =$B33 -> 11 | X37: =X$34*(W37-$B$33)^3+X$33*(W37-$B$33)^2+X$32*(W37-$B$33)+X$31 ->  | Z37: =$B34 -> 11 | AA37: =AA$34*(Z37-$B$34)^3+AA$33*(Z37-$B$34)^2+AA$32*(Z37-$B$34)+AA$31 ->  | AC37: =$B35 -> 11 | AD37: =AD$34*(AC37-$B$35)^3+AD$33*(AC37-$B$35)^2+AD$32*(AC37-$B$35)+AD$31 ->  | AF37: =$B36 -> 11 | AG37: =AG$34*(AF37-$B$36)^3+AG$33*(AF37-$B$36)^2+AG$32*(AF37-$B$36)+AG$31 -> 
A38: 13 | B38: =IF($A38<=nn,'y'' and y" agree'!B29,LOOKUP(nn,Sheet3!A$26:A$45,Sheet3!B$26:B$45)) -> 11 | C38: =IF($A38<=nn,'y'' and y" agree'!C29,LOOKUP(nn,A$26:A$45,C$26:C$45)) -> 22 | E38: =E37+($B28-$B26)/3 -> 1 | F38: =F$34*(E38-$B$26)^3+F$33*(E38-$B$26)^2+F$32*(E38-$B$26)+F$31 -> 10.000 | H38: =H37+($B29-$B28)/3 -> 4.333333333 | I38: =I$34*(H38-$B$28)^3+I$33*(H38-$B$28)^2+I$32*(H38-$B$28)+I$31 -> 22.568 | K38: =K37+($B30-$B29)/3 -> 7.666666667 | L38: =L$34*(K38-$B$29)^3+L$33*(K38-$B$29)^2+L$32*(K38-$B$29)+L$31 -> 12.728 | N38: =N37+($B31-$B30)/3 -> 9.666666667 | O38: =O$34*(N38-$B$30)^3+O$33*(N38-$B$30)^2+O$32*(N38-$B$30)+O$31 -> 41.333 | Q38: =Q37+($B32-$B31)/3 -> 11 | R38: =R$34*(Q38-$B$31)^3+R$33*(Q38-$B$31)^2+R$32*(Q38-$B$31)+R$31 ->  | T38: =T37+($B33-$B32)/3 -> 11 | U38: =U$34*(T38-$B$32)^3+U$33*(T38-$B$32)^2+U$32*(T38-$B$32)+U$31 ->  | W38: =W37+($B34-$B33)/3 -> 11 | X38: =X$34*(W38-$B$33)^3+X$33*(W38-$B$33)^2+X$32*(W38-$B$33)+X$31 ->  | Z38: =Z37+($B35-$B34)/3 -> 11 | AA38: =AA$34*(Z38-$B$34)^3+AA$33*(Z38-$B$34)^2+AA$32*(Z38-$B$34)+AA$31 ->  | AC38: =AC37+($B36-$B35)/3 -> 11 | AD38: =AD$34*(AC38-$B$35)^3+AD$33*(AC38-$B$35)^2+AD$32*(AC38-$B$35)+AD$31 ->  | AF38: =AF37+($B37-$B36)/3 -> 11 | AG38: =AG$34*(AF38-$B$36)^3+AG$33*(AF38-$B$36)^2+AG$32*(AF38-$B$36)+AG$31 -> 
A39: 14 | B39: =IF($A39<=nn,'y'' and y" agree'!#REF!,LOOKUP(nn,Sheet3!A$26:A$45,Sheet3!B$26:B$45)) -> 11 | C39: =IF($A39<=nn,'y'' and y" agree'!#REF!,LOOKUP(nn,A$26:A$45,C$26:C$45)) -> 22 | E39: =E37+2*($B28-$B26)/3 -> 2 | F39: =F$34*(E39-$B$26)^3+F$33*(E39-$B$26)^2+F$32*(E39-$B$26)+F$31 -> 15.167 | H39: =H37+2*($B29-$B28)/3 -> 5.666666667 | I39: =I$34*(H39-$B$28)^3+I$33*(H39-$B$28)^2+I$32*(H39-$B$28)+I$31 -> 21.506 | K39: =K37+2*($B30-$B29)/3 -> 8.333333333 | L39: =L$34*(K39-$B$29)^3+L$33*(K39-$B$29)^2+L$32*(K39-$B$29)+L$31 -> 13.457 | N39: =N37+2*($B31-$B30)/3 -> 10.33333333 | O39: =O$34*(N39-$B$30)^3+O$33*(N39-$B$30)^2+O$32*(N39-$B$30)+O$31 -> 49.074 | Q39: =Q37+2*($B32-$B31)/3 -> 11 | R39: =R$34*(Q39-$B$31)^3+R$33*(Q39-$B$31)^2+R$32*(Q39-$B$31)+R$31 ->  | T39: =T37+2*($B33-$B32)/3 -> 11 | U39: =U$34*(T39-$B$32)^3+U$33*(T39-$B$32)^2+U$32*(T39-$B$32)+U$31 ->  | W39: =W37+2*($B34-$B33)/3 -> 11 | X39: =X$34*(W39-$B$33)^3+X$33*(W39-$B$33)^2+X$32*(W39-$B$33)+X$31 ->  | Z39: =Z37+2*($B35-$B34)/3 -> 11 | AA39: =AA$34*(Z39-$B$34)^3+AA$33*(Z39-$B$34)^2+AA$32*(Z39-$B$34)+AA$31 ->  | AC39: =AC37+2*($B36-$B35)/3 -> 11 | AD39: =AD$34*(AC39-$B$35)^3+AD$33*(AC39-$B$35)^2+AD$32*(AC39-$B$35)+AD$31 ->  | AF39: =AF37+2*($B37-$B36)/3 -> 11 | AG39: =AG$34*(AF39-$B$36)^3+AG$33*(AF39-$B$36)^2+AG$32*(AF39-$B$36)+AG$31 -> 
A40: 15 | B40: =IF($A40<=nn,'y'' and y" agree'!#REF!,LOOKUP(nn,Sheet3!A$26:A$45,Sheet3!B$26:B$45)) -> 11 | C40: =IF($A40<=nn,'y'' and y" agree'!#REF!,LOOKUP(nn,A$26:A$45,C$26:C$45)) -> 22 | E40: =$B28 -> 3 | F40: =F$34*(E40-$B$26)^3+F$33*(E40-$B$26)^2+F$32*(E40-$B$26)+F$31 -> 18.000 | H40: =$B29 -> 7 | I40: =I$34*(H40-$B$28)^3+I$33*(H40-$B$28)^2+I$32*(H40-$B$28)+I$31 -> 16.000 | K40: =$B30 -> 9 | L40: =L$34*(K40-$B$29)^3+L$33*(K40-$B$29)^2+L$32*(K40-$B$29)+L$31 -> 23.000 | N40: =$B31 -> 11 | O40: =O$34*(N40-$B$30)^3+O$33*(N40-$B$30)^2+O$32*(N40-$B$30)+O$31 -> 22.000 | Q40: =$B32 -> 11 | R40: =R$34*(Q40-$B$31)^3+R$33*(Q40-$B$31)^2+R$32*(Q40-$B$31)+R$31 ->  | T40: =$B33 -> 11 | U40: =U$34*(T40-$B$32)^3+U$33*(T40-$B$32)^2+U$32*(T40-$B$32)+U$31 ->  | W40: =$B34 -> 11 | X40: =X$34*(W40-$B$33)^3+X$33*(W40-$B$33)^2+X$32*(W40-$B$33)+X$31 ->  | Z40: =$B35 -> 11 | AA40: =AA$34*(Z40-$B$34)^3+AA$33*(Z40-$B$34)^2+AA$32*(Z40-$B$34)+AA$31 ->  | AC40: =$B36 -> 11 | AD40: =AD$34*(AC40-$B$35)^3+AD$33*(AC40-$B$35)^2+AD$32*(AC40-$B$35)+AD$31 ->  | AF40: =$B37 -> 11 | AG40: =AG$34*(AF40-$B$36)^3+AG$33*(AF40-$B$36)^2+AG$32*(AF40-$B$36)+AG$31 -> 
A41: 16 | B41: =IF($A41<=nn,'y'' and y" agree'!#REF!,LOOKUP(nn,Sheet3!A$26:A$45,Sheet3!B$26:B$45)) -> 11 | C41: =IF($A41<=nn,'y'' and y" agree'!#REF!,LOOKUP(nn,A$26:A$45,C$26:C$45)) -> 22
A42: 17 | B42: =IF($A42<=nn,'y'' and y" agree'!#REF!,LOOKUP(nn,Sheet3!A$26:A$45,Sheet3!B$26:B$45)) -> 11 | C42: =IF($A42<=nn,'y'' and y" agree'!#REF!,LOOKUP(nn,A$26:A$45,C$26:C$45)) -> 22 | E42: old slope | F42: =F32+2*F33*F26+3*F34*F26^2 -> 5.833 | H42: old slope | I42: =I32+2*I33*I26+3*I34*I26^2 -> -5.500 | K42: old slope | L42: =L32+2*L33*L26+3*L34*L26^2 -> 23.333 | N42: old slope | O42: =O32+2*O33*O26+3*O34*O26^2 -> -78.833 | Q42: old slope | R42: =R32+2*R33*R26+3*R34*R26^2 ->  | T42: old slope | U42: =U32+2*U33*U26+3*U34*U26^2 ->  | W42: old slope | X42: =X32+2*X33*X26+3*X34*X26^2 ->  | Z42: old slope | AA42: =AA32+2*AA33*AA26+3*AA34*AA26^2 ->  | AC42: old slope | AD42: =AD32+2*AD33*AD26+3*AD34*AD26^2 ->  | AF42: old slope | AG42: =AG32+2*AG33*AG26+3*AG34*AG26^2 -> 
A43: 18 | B43: =IF($A43<=nn,'y'' and y" agree'!#REF!,LOOKUP(nn,Sheet3!A$26:A$45,Sheet3!B$26:B$45)) -> 11 | C43: =IF($A43<=nn,'y'' and y" agree'!#REF!,LOOKUP(nn,A$26:A$45,C$26:C$45)) -> 22 | E43: old curve | F43: =2*F33+6*F34*F27 -> -3.833333333 | H43: old curve | I43: =2*I33+6*I34*I26 -> -1.833333333 | K43: old curve | L43: =2*L33+6*L34*L26 -> 30.66666667 | N43: old curve | O43: =2*O33+6*O34*O26 -> -132.8333333 | Q43: old curve | R43: =2*R33+6*R34*R26 ->  | T43: old curve | U43: =2*U33+6*U34*U26 ->  | W43: old curve | X43: =2*X33+6*X34*X26 ->  | Z43: old curve | AA43: =2*AA33+6*AA34*AA26 ->  | AC43: old curve | AD43: =2*AD33+6*AD34*AD26 ->  | AF43: old curve | AG43: =2*AG33+6*AG34*AG26 -> 
A44: 19 | B44: =IF($A44<=nn,'y'' and y" agree'!#REF!,LOOKUP(nn,Sheet3!A$26:A$45,Sheet3!B$26:B$45)) -> 11 | C44: =IF($A44<=nn,'y'' and y" agree'!#REF!,LOOKUP(nn,A$26:A$45,C$26:C$45)) -> 22
A45: 20 | B45: =IF($A45<=nn,'y'' and y" agree'!#REF!,LOOKUP(nn,Sheet3!A$26:A$45,Sheet3!B$26:B$45)) -> 11 | C45: =IF($A45<=nn,'y'' and y" agree'!#REF!,LOOKUP(nn,A$26:A$45,C$26:C$45)) -> 22

Sheet Sheet4
B25: x | C25: y | E25: First cubic | H25: Second cubic | K25: Third cubic | N25: Fourth cubic | Q25: Fifth cubic | T25: Sixth cubic | W25: Seventh cubic | Z25: Eighth cubic | AC25: Ninth cubic
A26: 1 | B26: ='y'' and y" agree'!B17 -> 0 | C26: ='y'' and y" agree'!C17 -> 4 | E26: dx = | F26: =B27-B26 -> 1 | H26: dx= | I26: =$B28-$B27 -> 2 | K26: dx= | L26: =$B29-$B28 -> 4 | N26: dx= | O26: =$B30-$B29 -> 2 | Q26: dx= | R26: =$B31-$B30 -> 2 | T26: dx= | U26: =$B32-$B31 -> 0 | W26: dx= | X26: =$B33-$B32 -> 0 | Z26: dx= | AA26: =$B34-$B33 -> 0 | AC26: dx= | AD26: =$B35-$B34 -> 0
A27: 2 | B27: ='y'' and y" agree'!B18 -> 1 | C27: ='y'' and y" agree'!C18 -> 10
A28: 3 | B28: =IF(A28<=nn,'y'' and y" agree'!B19,"") -> 3 | C28: ='y'' and y" agree'!C19 -> 18
A29: 4 | B29: =IF(A29<=nn,'y'' and y" agree'!B20,"") -> 7 | C29: =IF($A29<=nn,'y'' and y" agree'!C20,LOOKUP(nn,A$26:A$45,C$26:C$45)) -> 16
A30: 5 | B30: =IF($A30<=nn,'y'' and y" agree'!B21,LOOKUP(nn,Sheet3!A$26:A$45,Sheet3!B$26:B$45)) -> 9 | C30: =IF($A30<=nn,'y'' and y" agree'!C21,LOOKUP(nn,A$26:A$45,C$26:C$45)) -> 23
A31: 6 | B31: =IF($A31<=nn,'y'' and y" agree'!B22,LOOKUP(nn,Sheet3!A$26:A$45,Sheet3!B$26:B$45)) -> 11 | C31: =IF($A31<=nn,'y'' and y" agree'!C22,LOOKUP(nn,A$26:A$45,C$26:C$45)) -> 22 | E31: a = | F31: =-F32/F26 -> -0.500 | H31: a = | I31: =(C28-C27)/I26^3-F43/2/I26-F42/I26^2 -> 0.250 | K31: a= | L31: =($C29-$C28)/L26^3-I43/2/L26-I42/L26^2 -> -0.313 | N31: a= | O31: =($C30-$C29)/O26^3-L43/2/O26-L42/O26^2 -> 5.000 | Q31: a= | R31: =($C31-$C30)/R26^3-O43/2/R26-O42/R26^2 -> -22.500 | T31: a= | U31: =($C32-$C31)/U26^3-R43/2/U26-R42/U26^2 ->  | W31: a= | X31: =($C33-$C32)/X26^3-U43/2/X26-U42/X26^2 ->  | Z31: a= | AA31: =($C34-$C33)/AA26^3-X43/2/AA26-X42/AA26^2 ->  | AC31: a= | AD31: =($C35-$C34)/AD26^3-AA43/2/AD26-AA42/AD26^2 -> 
A32: 7 | B32: =IF($A32<=nn,'y'' and y" agree'!B23,LOOKUP(nn,Sheet3!A$26:A$45,Sheet3!B$26:B$45)) -> 11 | C32: =IF($A32<=nn,'y'' and y" agree'!C23,LOOKUP(nn,A$26:A$45,C$26:C$45)) -> 22 | E32: b = | F32: =(C28-2*C27+C26)/2/F26/(B28-B27) -> 0.500 | H32: b = | I32: =F43/2 -> -1.250 | K32: b= | L32: =I43/2 -> 0.250 | N32: b= | O32: =L43/2 -> -3.500 | Q32: b= | R32: =O43/2 -> 26.500 | T32: b= | U32: =R43/2 -> -108.500 | W32: b= | X32: =U43/2 ->  | Z32: b= | AA32: =X43/2 ->  | AC32: b= | AD32: =AA43/2 -> 
A33: 8 | B33: =IF($A33<=nn,'y'' and y" agree'!B24,LOOKUP(nn,Sheet3!A$26:A$45,Sheet3!B$26:B$45)) -> 11 | C33: =IF($A33<=nn,'y'' and y" agree'!C24,LOOKUP(nn,A$26:A$45,C$26:C$45)) -> 22 | E33: c = | F33: =(C27-C26)/F26 -> 6 | H33: c = | I33: =F42 -> 5.500 | K33: c= | L33: =I42 -> 3.500 | N33: c= | O33: =L42 -> -9.500 | Q33: c= | R33: =O42 -> 36.500 | T33: c= | U33: =R42 -> -127.500 | W33: c= | X33: =U42 ->  | Z33: c= | AA33: =X42 ->  | AC33: c= | AD33: =AA42 -> 
A34: 9 | B34: =IF($A34<=nn,'y'' and y" agree'!B25,LOOKUP(nn,Sheet3!A$26:A$45,Sheet3!B$26:B$45)) -> 11 | C34: =IF($A34<=nn,'y'' and y" agree'!C25,LOOKUP(nn,A$26:A$45,C$26:C$45)) -> 22 | E34: d = | F34: =C26 -> 4.000 | H34: d = | I34: =C27 -> 10.000 | K34: d= | L34: =C28 -> 18.000 | N34: d= | O34: =$C29 -> 16.000 | Q34: d= | R34: =$C30 -> 23.000 | T34: d= | U34: =$C31 -> 22.000 | W34: d= | X34: =$C32 -> 22.0 | Z34: d= | AA34: =$C33 -> 22.0 | AC34: d= | AD34: =$C34 -> 22.0
A35: 10 | B35: =IF($A35<=nn,'y'' and y" agree'!B26,LOOKUP(nn,Sheet3!A$26:A$45,Sheet3!B$26:B$45)) -> 11 | C35: =IF($A35<=nn,'y'' and y" agree'!C26,LOOKUP(nn,A$26:A$45,C$26:C$45)) -> 22
E36: coordinates: | H36: coordinates: | K36: coordinates: | N36: coordinates: | Q36: coordinates: | T36: coordinates: | W36: coordinates: | Z36: coordinates: | AC36: coordinates:
E37: =$B26 -> 0 | F37: =F$31*(E37-$B$26)^3+F$32*(E37-$B$26)^2+F$33*(E37-$B$26)+F$34 -> 4.000 | H37: =$B27 -> 1 | I37: =I$31*(H37-$B$27)^3+I$32*(H37-$B$27)^2+I$33*(H37-$B$27)+I$34 -> 10.000 | K37: =$B28 -> 3 | L37: =L$31*(K37-$B$28)^3+L$32*(K37-$B$28)^2+L$33*(K37-$B$28)+L$34 -> 18.000 | N37: =$B29 -> 7 | O37: =O$31*(N37-$B$29)^3+O$32*(N37-$B$29)^2+O$33*(N37-$B$29)+O$34 -> 16.000 | Q37: =$B30 -> 9 | R37: =R$31*(Q37-$B$30)^3+R$32*(Q37-$B$30)^2+R$33*(Q37-$B$30)+R$34 -> 23.000 | T37: =$B31 -> 11 | U37: =U$31*(T37-$B$31)^3+U$32*(T37-$B$31)^2+U$33*(T37-$B$31)+U$34 ->  | W37: =$B32 -> 11 | X37: =X$31*(W37-$B$32)^3+X$32*(W37-$B$32)^2+X$33*(W37-$B$32)+X$34 ->  | Z37: =$B33 -> 11 | AA37: =AA$31*(Z37-$B$33)^3+AA$32*(Z37-$B$33)^2+AA$33*(Z37-$B$33)+AA$34 ->  | AC37: =$B34 -> 11 | AD37: =AD$31*(AC37-$B$34)^3+AD$32*(AC37-$B$34)^2+AD$33*(AC37-$B$34)+AD$34 -> 
E38: =E37+($B27-$B26)/3 -> 0.3333333333 | F38: =F$31*(E38-$B$26)^3+F$32*(E38-$B$26)^2+F$33*(E38-$B$26)+F$34 -> 6.037 | H38: =H37+($B28-$B27)/3 -> 1.666666667 | I38: =I$31*(H38-$B$27)^3+I$32*(H38-$B$27)^2+I$33*(H38-$B$27)+I$34 -> 13.185 | K38: =K37+(L$26)/3 -> 4.333333333 | L38: =L$31*(K38-$B$28)^3+L$32*(K38-$B$28)^2+L$33*(K38-$B$28)+L$34 -> 22.370 | N38: =N37+(O$26)/3 -> 7.666666667 | O38: =O$31*(N38-$B$29)^3+O$32*(N38-$B$29)^2+O$33*(N38-$B$29)+O$34 -> 9.593 | Q38: =Q37+(R$26)/3 -> 9.666666667 | R38: =R$31*(Q38-$B$30)^3+R$32*(Q38-$B$30)^2+R$33*(Q38-$B$30)+R$34 -> 52.444 | T38: =T37+(U$26)/3 -> 11 | U38: =U$31*(T38-$B$31)^3+U$32*(T38-$B$31)^2+U$33*(T38-$B$31)+U$34 ->  | W38: =W37+(X$26)/3 -> 11 | X38: =X$31*(W38-$B$32)^3+X$32*(W38-$B$32)^2+X$33*(W38-$B$32)+X$34 ->  | Z38: =Z37+(AA$26)/3 -> 11 | AA38: =AA$31*(Z38-$B$33)^3+AA$32*(Z38-$B$33)^2+AA$33*(Z38-$B$33)+AA$34 ->  | AC38: =AC37+(AD$26)/3 -> 11 | AD38: =AD$31*(AC38-$B$34)^3+AD$32*(AC38-$B$34)^2+AD$33*(AC38-$B$34)+AD$34 -> 
E39: =E37+2*($B27-$B26)/3 -> 0.6666666667 | F39: =F$31*(E39-$B$26)^3+F$32*(E39-$B$26)^2+F$33*(E39-$B$26)+F$34 -> 8.074 | H39: =H37+2*($B28-$B27)/3 -> 2.333333333 | I39: =I$31*(H39-$B$27)^3+I$32*(H39-$B$27)^2+I$33*(H39-$B$27)+I$34 -> 15.704 | K39: =K38+(L$26)/3 -> 5.666666667 | L39: =L$31*(K39-$B$28)^3+L$32*(K39-$B$28)^2+L$33*(K39-$B$28)+L$34 -> 23.185 | N39: =N38+(O$26)/3 -> 8.333333333 | O39: =O$31*(N39-$B$29)^3+O$32*(N39-$B$29)^2+O$33*(N39-$B$29)+O$34 -> 8.963 | Q39: =Q38+(R$26)/3 -> 10.33333333 | R39: =R$31*(Q39-$B$30)^3+R$32*(Q39-$B$30)^2+R$33*(Q39-$B$30)+R$34 -> 65.444 | T39: =T38+(U$26)/3 -> 11 | U39: =U$31*(T39-$B$31)^3+U$32*(T39-$B$31)^2+U$33*(T39-$B$31)+U$34 ->  | W39: =W38+(X$26)/3 -> 11 | X39: =X$31*(W39-$B$32)^3+X$32*(W39-$B$32)^2+X$33*(W39-$B$32)+X$34 ->  | Z39: =Z38+(AA$26)/3 -> 11 | AA39: =AA$31*(Z39-$B$33)^3+AA$32*(Z39-$B$33)^2+AA$33*(Z39-$B$33)+AA$34 ->  | AC39: =AC38+(AD$26)/3 -> 11 | AD39: =AD$31*(AC39-$B$34)^3+AD$32*(AC39-$B$34)^2+AD$33*(AC39-$B$34)+AD$34 -> 
E40: =$B27 -> 1 | F40: =F$31*(E40-$B$26)^3+F$32*(E40-$B$26)^2+F$33*(E40-$B$26)+F$34 -> 10.000 | H40: =$B28 -> 3 | I40: =I$31*(H40-$B$27)^3+I$32*(H40-$B$27)^2+I$33*(H40-$B$27)+I$34 -> 18.000 | K40: =K39+(L$26)/3 -> 7 | L40: =L$31*(K40-$B$28)^3+L$32*(K40-$B$28)^2+L$33*(K40-$B$28)+L$34 -> 16.000 | N40: =N39+(O$26)/3 -> 9 | O40: =O$31*(N40-$B$29)^3+O$32*(N40-$B$29)^2+O$33*(N40-$B$29)+O$34 -> 23.000 | Q40: =Q39+(R$26)/3 -> 11 | R40: =R$31*(Q40-$B$30)^3+R$32*(Q40-$B$30)^2+R$33*(Q40-$B$30)+R$34 -> 22.000 | T40: =T39+(U$26)/3 -> 11 | U40: =U$31*(T40-$B$31)^3+U$32*(T40-$B$31)^2+U$33*(T40-$B$31)+U$34 ->  | W40: =W39+(X$26)/3 -> 11 | X40: =X$31*(W40-$B$32)^3+X$32*(W40-$B$32)^2+X$33*(W40-$B$32)+X$34 ->  | Z40: =Z39+(AA$26)/3 -> 11 | AA40: =AA$31*(Z40-$B$33)^3+AA$32*(Z40-$B$33)^2+AA$33*(Z40-$B$33)+AA$34 ->  | AC40: =AC39+(AD$26)/3 -> 11 | AD40: =AD$31*(AC40-$B$34)^3+AD$32*(AC40-$B$34)^2+AD$33*(AC40-$B$34)+AD$34 -> 
E42: end slope | F42: =3*F31*F26^2+2*F32*F26+F33 -> 5.500 | H42: end slope | I42: =3*I31*I26^2+2*I32*I26+I33 -> 3.500 | K42: end slope | L42: =3*L31*L26^2+2*L32*L26+L33 -> -9.500 | N42: end slope | O42: =3*O31*O26^2+2*O32*O26+O33 -> 36.500 | Q42: end slope | R42: =3*R31*R26^2+2*R32*R26+R33 -> -127.500 | T42: end slope | U42: =3*U31*U26^2+2*U32*U26+U33 ->  | W42: end slope | X42: =3*X31*X26^2+2*X32*X26+X33 ->  | Z42: end slope | AA42: =3*AA31*AA26^2+2*AA32*AA26+AA33 ->  | AC42: end slope | AD42: =3*AD31*AD26^2+2*AD32*AD26+AD33 -> 
E43: end curve | F43: =6*F31*F26+F32 -> -2.5 | H43: end curve | I43: =6*I31*I26+2*I32 -> 0.5 | K43: end curve | L43: =6*L31*L26+2*L32 -> -7 | N43: end curve | O43: =6*O31*O26+2*O32 -> 53 | Q43: end curve | R43: =6*R31*R26+2*R32 -> -217 | T43: end curve | U43: =6*U31*U26+2*U32 ->  | W43: end curve | X43: =6*X31*X26+2*X32 ->  | Z43: end curve | AA43: =6*AA31*AA26+2*AA32 ->  | AC43: end curve | AD43: =6*AD31*AD26+2*AD32 -> 
